bitfinex/quotes_ETHUSD_20250404
["timestamp","ask_amount","ask_price","bid_price","bid_amount"]
[1743788307177,5.51268,1814.0,1813.7,5.51341]
[1743788307542,6.063644,1814.1,1813.7,5.51341]
[1743788307749,6.063644,1814.1,1813.8,5.51327]
[1743788308058,6.063644,1814.1,1813.8,5.51319]
[1743788308254,11.576184,1814.1,1813.7,5.51341]
[1743788308457,6.063644,1814.1,1813.7,5.51341]
[1743788308672,5.51291,1814.0,1813.6,11.02759]
[1743788308874,6.1193264,1814.0,1813.6,11.02759]
[1743788309028,0.7641,1813.9,1813.4,5.51424]
[1743788309234,5.51413,1813.6,1813.2,5.51497]
[1743788309437,0.551413,1813.5,1813.2,5.51497]
[1743788309664,5.51462,1813.4,1813.0,11.03121]
[1743788309873,6.291,1813.3,1813.0,11.03121]
[1743788310175,6.291,1813.3,1813.1,11.03061]
[1743788310379,6.291,1813.3,1813.2,5.51511]
[1743788310552,6.286,1813.6,1813.4,5.5144]
[1743788310881,6.286,1813.6,1813.4,5.51434]
[1743788311237,6.286,1813.6,1813.3,11.02958]
[1743788311468,6.30251,1813.7,1813.4,5.51447]
[1743788311634,6.283,1813.6,1813.4,5.51447]
[1743788311989,13.47713507,1813.6,1813.3,5.51479]
[1743788312162,7.96314507,1813.6,1813.4,5.51448]
[1743788312362,6.70459407,1813.6,1813.4,11.02882]
[1743788312565,6.283,1813.6,1813.4,5.51434]
[1743788312875,6.283,1813.6,1813.3,11.02956]
[1743788313072,6.283,1813.6,1813.0,5.51562]
[1743788313073,11.79705,1813.6,1813.2,5.51485]
[1743788313381,6.283,1813.6,1813.0,5.51562]
[1743788313542,6.3044,1813.3,1812.9,5.51585]
[1743788313884,5.51537,1813.2,1812.8,5.51605]
[1743788314042,6.266,1813.1,1812.8,5.51605]
[1743788314378,6.266,1813.1,1812.5,6.26712]
[1743788314379,6.266,1813.1,1812.9,5.51586]
[1743788314581,6.266,1813.1,1813.0,5.51571]
[1743788314875,6.266,1813.1,1812.8,5.5163]
[1743788315066,6.266,1813.1,1812.8,5.51617]
[1743788315264,6.266,1813.1,1812.9,5.51586]
[1743788316074,6.266,1813.1,1812.9,5.51578]
[1743788316802,6.266,1813.1,1813.0,5.51571]
[1743788316945,0.7894,1813.3,1813.1,5.51521]
[1743788317147,31.048,1813.5,1812.7,5.51645]
[1743788317347,31.048,1813.5,1813.3,5.51471]
[1743788317596,6.31019,1813.9,1813.2,0.789]
[1743788317748,6.255,1813.8,1813.6,5.51376]
[1743788317948,6.255,1813.8,1813.3,5.51469]
[1743788318189,11.02776,1813.7,1813.3,5.51469]
[1743788318397,6.255,1813.8,1813.1,5.5153]
[1743788318551,0.826,1813.4,1813.1,5.51528]
[1743788318747,11.76609,1813.3,1812.9,5.51581]
[1743788318954,11.76609,1813.3,1812.8,0.7782]
[1743788318955,6.251,1813.3,1813.0,5.51557]
[1743788319280,6.251,1813.3,1813.0,11.03117]
[1743788319586,6.251,1813.3,1813.0,11.03114]
[1743788319787,6.251,1813.3,1812.8,0.7782]
[1743788319788,6.251,1813.3,1813.1,5.51527]
[1743788319992,6.251,1813.3,1813.2,5.51511]
[1743788320170,5.5142,1813.5,1813.1,5.51527]
[1743788320515,6.241,1813.4,1813.3,5.5148]
[1743788320990,6.241,1813.4,1813.2,5.51499]
[1743788321357,6.241,1813.4,1813.3,5.5148]
[1743788321795,6.231,1813.5,1813.4,5.51448]
[1743788322271,6.231,1813.5,1813.4,5.5145]
[1743788322881,6.231,1813.5,1812.8,6.29432]
[1743788323081,6.13788,1813.4,1813.0,5.51548]
[1743788323308,6.13777,1813.4,1813.0,5.51548]
[1743788323511,11.02986,1813.3,1812.9,5.51599]
[1743788323722,5.51483,1813.3,1812.9,5.51588]
[1743788323875,6.1377,1813.4,1813.0,5.51556]
[1743788324075,12.07601555,1813.4,1813.0,5.51556]
[1743788324518,6.56128555,1813.4,1813.0,5.51556]
[1743788324680,0.8083,1814.4,1814.0,5.51246]
[1743788325087,0.41990436,1814.2,1813.8,5.51321]
[1743788325398,6.247,1814.1,1813.8,5.51328]
[1743788325591,6.247,1814.1,1813.9,5.51297]
[1743788326514,6.247,1814.1,1813.8,5.51328]
[1743788326811,6.247,1814.1,1813.9,11.02575]
[1743788326989,6.247,1814.1,1814.0,5.51267]
[1743788327392,0.8083,1814.4,1814.0,6.615125]
[1743788327590,6.232,1814.4,1814.3,5.51176]
[1743788328214,0.01817218,1814.5,1814.3,11.02331]
[1743788328521,6.24617218,1814.5,1814.3,11.02313]
[1743788328705,0.01817218,1814.5,1814.4,5.51146]
[1743788328904,6.24317218,1814.5,1814.4,5.51146]
[1743788329122,6.24317218,1814.5,1814.3,5.51155]
[1743788329414,6.24317218,1814.5,1814.3,6.1566161]
[1743788329624,6.24317218,1814.5,1814.2,11.02399]
[1743788329828,5.5123,1814.2,1813.6,5.51376]
[1743788330119,30.31976,1814.3,1813.8,5.51315]
[1743788330279,3.031976,1814.2,1813.8,5.51315]
[1743788330483,8.95140231,1814.2,1813.6,5.51389]
[1743788330799,5.51302,1813.9,1813.3,11.02934]
[1743788331008,7.0364,1813.8,1813.3,5.51454]
[1743788331311,7.0364,1813.8,1813.2,11.03002]
[1743788331521,6.21728,1813.7,1813.2,11.02985]
[1743788331690,0.70364,1813.7,1813.2,5.51492]
[1743788331909,6.21736,1813.7,1813.2,5.51492]
[1743788332118,0.70364,1813.7,1813.2,11.02981]
[1743788332521,6.21726,1813.7,1813.2,5.51489]
[1743788332833,7.0364,1813.8,1813.3,5.51455]
[1743788333041,7.0364,1813.8,1813.4,5.51447]
[1743788333334,7.0364,1813.8,1813.4,5.51429]
[1743788333498,7.0364,1813.8,1813.5,5.51409]
[1743788333928,0.8164,1813.8,1813.4,11.02866]
[1743788334133,6.199,1813.7,1813.3,5.5148]
[1743788334308,6.199,1813.7,1813.2,5.51503]
[1743788334511,11.71261,1813.7,1813.2,5.51503]
[1743788335037,6.199,1813.7,1813.2,5.51498]
[1743788335236,11.7126,1813.7,1813.2,5.51498]
[1743788335439,1.17126,1813.6,1813.1,5.51539]
[1743788335811,11.7126,1813.7,1813.2,5.51497]
[1743788336002,11.7126,1813.7,1812.9,6.32657]
[1743788336003,0.7526,1813.6,1813.1,5.5154]
[1743788336430,0.7526,1813.6,1813.0,5.5157]
[1743788336627,0.7526,1813.6,1813.0,11.03121]
[1743788337045,0.7526,1813.6,1813.1,5.51535]
[1743788337358,0.7526,1813.6,1813.1,11.03046]
[1743788337558,0.7526,1813.6,1813.2,5.515]
[1743788338021,6.169,1813.5,1813.3,5.51463]
[1743788338356,6.169,1813.5,1813.3,5.5148]
[1743788339061,6.169,1813.5,1813.2,11.08496458]
[1743788339359,6.159,1813.4,1813.3,5.5148]
[1743788340460,6.159,1813.4,1813.1,6.62378128]
[1743788340670,6.159,1813.4,1813.1,5.51538]
[1743788341019,6.159,1813.4,1813.0,5.51563]
[1743788341259,6.159,1813.4,1813.2,5.51507]
[1743788341433,6.159,1813.4,1813.1,5.51537]
[1743788341633,6.159,1813.4,1813.1,5.51525]
[1743788341824,6.159,1813.4,1813.0,5.51567]
[1743788342023,6.159,1813.4,1813.1,5.51538]
[1743788342256,6.159,1813.4,1813.1,11.03062]
[1743788343124,6.159,1813.4,1812.7,0.7502]
[1743788343125,6.159,1813.4,1813.2,5.51504]
[1743788343326,6.159,1813.4,1813.1,5.5153]
[1743788343539,6.159,1813.4,1812.7,6.26677]
[1743788343753,6.159,1813.4,1813.0,5.51562]
[1743788344153,6.159,1813.4,1812.8,0.626677]
[1743788344154,6.159,1813.4,1813.1,5.51519]
[1743788344375,6.159,1813.4,1813.2,5.51499]
[1743788344579,6.127,1813.7,1813.6,5.51389]
[1743788344964,6.15917218,1814.5,1813.6,1.96953243]
[1743788345278,6.15917218,1814.5,1814.2,5.51205]
[1743788345479,6.15917218,1814.5,1814.2,11.0241]
[1743788345786,6.15917218,1814.5,1814.2,11.02393]
[1743788345992,6.15917218,1814.5,1814.3,11.02319]
[1743788346139,0.01817218,1814.5,1814.3,5.51165]
[1743788346343,0.01817218,1814.5,1814.4,5.56657402]
[1743788346883,0.01817218,1814.5,1814.4,5.51146]
[1743788347240,0.01817218,1814.5,1814.4,5.56656735]
[1743788348070,0.01817218,1814.5,1814.4,5.51146]
[1743788348590,0.01817218,1814.5,1814.4,5.56656343]
[1743788348748,2.18e-06,1814.5,1814.4,7.55070127]
[1743788348943,0.1,1814.9,1814.8,5.51024]
[1743788349192,0.1,1814.9,1814.8,6.38572722]
[1743788349690,0.1,1814.9,1814.8,5.51024]
[1743788349856,6.236,1814.9,1814.7,5.5104]
[1743788350045,6.8596,1814.9,1814.4,5.5113]
[1743788350242,0.7682,1814.8,1814.6,5.51061]
[1743788350477,0.7682,1814.8,1814.6,11.02128]
[1743788350688,0.7682,1814.8,1814.5,5.51108]
[1743788350888,0.7682,1814.8,1814.4,5.5112]
[1743788350889,0.1,1814.9,1814.7,5.51039]
[1743788351094,6.144,1814.8,1814.7,5.51039]
[1743788351744,0.1,1814.9,1814.8,5.51024]
[1743788351950,6.24,1814.9,1814.7,5.51039]
[1743788352382,6.24,1814.9,1814.8,5.51024]
[1743788352583,6.24,1814.9,1814.7,5.51039]
[1743788352785,6.24,1814.9,1814.7,5.51036]
[1743788353085,6.24,1814.9,1814.8,5.51024]
[1743788353288,6.24,1814.9,1814.4,5.51117]
[1743788353289,6.24,1814.9,1814.5,5.51101]
[1743788353447,12.87498129,1814.9,1814.4,5.5114]
[1743788353650,28.6203,1814.8,1813.9,5.51296]
[1743788353850,25.6203,1814.8,1814.4,5.51144]
[1743788354086,6.145,1814.7,1814.4,5.51144]
[1743788354424,6.145,1814.7,1814.4,11.02276]
[1743788354589,6.145,1814.7,1814.5,5.51093]
[1743788355397,6.145,1814.7,1814.6,5.51085]
[1743788355608,25.6203,1814.8,1814.7,5.51055]
[1743788355792,31.7623,1814.8,1814.6,5.51076]
[1743788355978,31.7623,1814.8,1814.6,5.51064]
[1743788356168,31.7623,1814.8,1814.7,5.51055]
[1743788356367,24.799,1814.8,1814.7,5.51055]
[1743788356597,30.932,1814.8,1814.7,5.51055]
[1743788357333,0.1,1814.9,1814.8,5.51024]
[1743788357628,0.1,1814.9,1814.8,6.612319]
[1743788358493,0.1,1814.9,1814.8,5.51024]
[1743788358910,0.1,1814.9,1814.7,5.51055]
[1743788359228,6.155,1814.8,1814.7,5.51055]
[1743788360141,0.1,1814.9,1814.8,5.51024]
[1743788360510,0.1,1814.9,1814.7,6.34358]
[1743788360705,0.1,1814.9,1814.8,5.51024]
[1743788360905,0.1,1814.9,1814.8,6.7507189]
[1743788361123,0.1,1814.9,1814.8,6.695622]
[1743788361723,0.1,1814.9,1814.8,5.51024]
[1743788362135,0.1,1814.9,1814.5,0.7521]
[1743788362339,0.1,1814.9,1814.8,5.51024]
[1743788362750,0.1,1814.9,1814.7,11.02085]
[1743788363237,6.229,1814.9,1814.7,11.02079]
[1743788363763,6.229,1814.9,1814.8,5.51024]
[1743788363971,6.229,1814.9,1814.7,5.51037]
[1743788364421,6.229,1814.9,1814.5,0.7521]
[1743788364617,12.36202,1814.9,1814.4,5.5113]
[1743788364822,12.36202,1814.9,1814.0,5.51252]
[1743788364823,0.7977,1814.8,1814.0,5.51252]
[1743788365059,6.27617,1814.4,1813.9,5.51293]
[1743788365363,6.13,1814.3,1813.8,5.51314]
[1743788365558,6.13,1814.3,1813.6,0.775]
[1743788365559,6.13,1814.3,1814.0,5.5125]
[1743788365763,6.13,1814.3,1813.9,5.51293]
[1743788365959,6.13,1814.3,1813.6,5.51381]
[1743788365960,5.51233,1814.2,1813.6,5.51381]
[1743788366161,6.81946,1814.3,1813.8,5.51325]
[1743788366162,12.33126,1814.3,1813.8,5.51325]
[1743788366360,12.33126,1814.3,1813.9,5.51287]
[1743788366361,6.81946,1814.3,1813.9,5.51287]
[1743788366562,6.13,1814.3,1814.1,5.51226]
[1743788366731,6.13,1814.3,1814.0,5.51267]
[1743788367125,6.13,1814.3,1813.9,11.02581]
[1743788367653,6.13,1814.3,1814.1,5.51222]
[1743788367962,6.13,1814.3,1814.2,5.51207]
[1743788368940,6.13,1814.3,1814.1,11.02441]
[1743788369135,6.13,1814.3,1814.2,5.51207]
[1743788369343,6.13,1814.3,1814.1,5.51219]
[1743788369544,6.13,1814.3,1814.0,5.51265]
[1743788369739,6.13,1814.3,1813.8,0.7635]
[1743788369954,6.9042,1814.3,1813.9,11.02582]
[1743788370138,13.657667,1814.3,1813.8,11.02641]
[1743788370328,13.657667,1814.3,1813.9,5.51297]
[1743788370729,13.657667,1814.3,1813.6,0.7961]
[1743788370730,0.7742,1814.3,1813.7,5.56870849]
[1743788370973,6.119,1814.5,1814.3,5.51171]
[1743788371170,0.1,1814.9,1814.3,5.51171]
[1743788371473,1e-05,1814.9,1814.8,9.26484]
[1743788371787,1e-05,1815.1,1815.0,5.50964]
[1743788371984,1e-05,1815.1,1815.0,7.44476722]
[1743788372146,1e-05,1815.1,1815.0,10.44476722]
[1743788372865,1e-05,1815.1,1815.0,7.97768511]
[1743788374085,1e-05,1815.1,1815.0,7.56186376]
[1743788374244,1e-05,1815.1,1815.0,6.51499779]
[1743788374442,1e-05,1815.1,1815.0,6.45991676]
[1743788377657,1e-05,1815.1,1815.0,5.68181676]
[1743788377854,1e-05,1815.1,1814.9,11.01962]
[1743788378069,1e-05,1815.1,1815.0,5.56473417]
[1743788378270,1e-05,1815.1,1815.0,6.69643242]
[1743788378597,1e-05,1815.1,1815.0,6.75151264]
[1743788378795,1e-05,1815.1,1815.0,6.9236121]
[1743788378964,1e-05,1815.1,1815.0,6.86853188]
[1743788379497,1e-05,1815.1,1815.0,6.92360567]
[1743788379667,1e-05,1815.1,1815.0,6.9236057]
[1743788379995,1e-05,1815.1,1815.0,6.86853188]
[1743788381300,1e-05,1815.1,1815.0,6.69643242]
[1743788382179,1e-05,1815.1,1815.0,6.75151841]
[1743788382375,1e-05,1815.1,1815.0,6.9236439]
[1743788382585,1e-05,1815.1,1815.0,6.86855791]
[1743788383388,1e-05,1815.1,1815.0,6.92363221]
[1743788383711,1e-05,1815.1,1815.0,6.86855791]
[1743788383898,1e-05,1815.1,1815.0,5.68176549]
[1743788384100,1e-05,1815.1,1815.0,5.50964]
[1743788384515,0.11248917,1815.1,1815.0,5.50964]
[1743788386099,0.11248917,1815.1,1815.0,6.34392319]
[1743788386293,6.305,1815.6,1815.5,5.50812]
[1743788386805,7.1538,1815.9,1815.8,5.50721]
[1743788387007,7.1538,1815.9,1815.7,5.50727]
[1743788387215,7.1538,1815.9,1815.6,5.50766]
[1743788387414,7.1538,1815.9,1815.7,5.50749]
[1743788387737,7.1538,1815.9,1815.7,11.01488]
[1743788387939,7.1538,1815.9,1815.6,5.50778]
[1743788388276,7.1538,1815.9,1815.5,5.50799]
[1743788388538,8.419859,1815.9,1815.5,5.50799]
[1743788388922,0.7611,1815.7,1815.3,5.50858]
[1743788389100,6.26877,1815.7,1815.2,5.50875]
[1743788389297,11.7765,1815.7,1815.2,5.50875]
[1743788389513,5.50789,1815.6,1815.2,5.50875]
[1743788389853,6.31231,1815.5,1815.1,5.5093]
[1743788390022,6.265,1815.4,1815.1,5.5093]
[1743788390217,6.265,1815.4,1815.3,5.50873]
[1743788390953,7.0863,1815.8,1815.6,5.5078]
[1743788391315,7.0863,1815.8,1815.7,5.50751]
[1743788392167,7.0863,1815.8,1815.6,5.50765]
[1743788392666,7.0863,1815.8,1815.7,5.50751]
[1743788393968,0.1,1815.9,1815.8,5.50721]
[1743788394564,0.1,1815.9,1815.6,5.50781]
[1743788394880,3.29359,1815.9,1815.6,5.50781]
[1743788395373,3.29359,1815.9,1815.5,5.50806]
[1743788395754,1.02e-06,1816.4,1815.6,6.8528]
[1743788395956,0.7549,1817.3,1816.8,5.50418]
[1743788396250,6.9989,1817.3,1816.8,5.50418]
[1743788396951,0.7549,1817.3,1816.8,5.50418]
[1743788397171,6.25,1817.2,1816.8,5.50418]
[1743788398000,0.7549,1817.3,1816.8,5.55921332]
[1743788398173,0.7549,1817.3,1816.8,5.50418]
[1743788398497,0.7656,1816.8,1816.7,5.50437]
[1743788398702,0.7656,1816.8,1816.3,5.50543]
[1743788398908,2.03126,1816.8,1816.3,5.50564]
[1743788399075,2.03126,1816.8,1816.4,5.50537]
[1743788399261,2.03126,1816.8,1816.4,5.50523]
[1743788399461,6.286,1816.7,1816.4,5.50523]
[1743788399760,6.286,1816.7,1816.0,0.7631]
[1743788399964,6.26413,1816.6,1816.1,5.50614]
[1743788400174,5.50521,1816.5,1816.0,5.50654]
[1743788400395,6.26413,1816.6,1815.1,10.35562336]
[1743788400396,6.31965,1816.4,1815.8,5.50703]
[1743788400595,0.814,1816.4,1816.0,5.50659]
[1743788400819,6.279,1816.3,1816.1,5.50618]
[1743788400963,0.814,1816.1,1815.7,11.0148]
[1743788401163,0.814,1816.1,1815.7,11.01469]
[1743788401362,0.814,1816.1,1815.8,5.50709]
[1743788401799,0.814,1816.1,1815.7,11.0147]
[1743788402112,0.814,1816.1,1815.7,5.50731]
[1743788402521,0.814,1816.1,1815.9,5.50663]
[1743788402675,6.286,1816.0,1815.8,5.5072]
[1743788402879,6.286,1816.0,1815.6,5.50755]
[1743788403183,17.29964,1816.0,1815.5,5.68008868]
[1743788403383,5.50743,1815.8,1815.3,5.50871]
[1743788403687,0.7525,1815.6,1815.4,5.50827]
[1743788403890,6.286,1815.5,1815.4,5.50827]
[1743788404790,0.8173,1815.9,1815.6,5.50752]
[1743788404987,6.283,1815.8,1815.6,5.50752]
[1743788405208,6.28,1815.9,1815.7,5.50751]
[1743788405404,24.774,1816.0,1815.9,5.50691]
[1743788405608,0.7903,1816.4,1816.2,5.50588]
[1743788405817,0.8665,1816.9,1816.8,5.50418]
[1743788406179,0.1,1816.9,1816.7,5.5044]
[1743788406379,6.398,1816.9,1816.7,11.00871]
[1743788406581,6.398,1816.9,1816.8,5.50418]
[1743788406796,6.398,1816.9,1816.7,5.50431]
[1743788407024,0.8319,1816.8,1816.5,5.50494]
[1743788407255,0.8319,1816.8,1816.6,5.50467]
[1743788407455,6.414,1816.9,1816.7,5.50435]
[1743788407658,0.1,1816.9,1816.7,11.00863]
[1743788407859,0.1,1816.9,1816.7,11.00857]
[1743788408161,0.1,1816.9,1816.7,5.50428]
[1743788408326,0.1,1816.9,1816.8,5.50418]
[1743788408854,0.1,1816.9,1816.7,5.50428]
[1743788409457,0.1,1816.9,1816.8,5.50418]
[1743788410528,0.1,1816.9,1816.8,6.605026]
[1743788411032,0.20315258,1816.9,1816.8,6.66005686]
[1743788411223,0.1,1816.9,1816.8,6.605026]
[1743788411422,0.20429421,1816.9,1816.8,6.605026]
[1743788411623,0.1,1816.9,1816.8,5.50418]
[1743788411825,0.20440077,1816.9,1816.8,5.50418]
[1743788412238,0.20440077,1816.9,1816.6,5.50474]
[1743788412525,0.20440077,1816.9,1816.2,5.50579]
[1743788412526,0.7627,1816.8,1816.5,5.50508]
[1743788412754,6.38757603,1816.7,1816.4,5.50534]
[1743788412974,6.38757603,1816.7,1816.5,5.56001962]
[1743788413150,6.38757603,1816.7,1816.6,5.50478]
[1743788413349,6.38757603,1816.7,1816.4,5.50529]
[1743788413541,6.38757603,1816.7,1816.5,5.50506]
[1743788413754,6.38757603,1816.7,1816.5,5.50492]
[1743788413952,6.38757603,1816.7,1816.6,5.50478]
[1743788414152,0.10457603,1816.7,1816.6,6.60575]
[1743788414342,0.1,1816.9,1816.8,5.50418]
[1743788414670,0.2040992,1816.9,1816.7,5.50432]
[1743788414834,0.2040992,1816.9,1816.4,5.50536]
[1743788415167,5.50494,1816.6,1816.1,5.50614]
[1743788415322,0.8209,1816.4,1816.0,5.50656]
[1743788415527,6.32652,1816.4,1815.9,11.01357]
[1743788415742,5.50586,1816.3,1815.6,5.50782]
[1743788416033,4.23140814,1816.4,1815.9,5.50666]
[1743788416348,6.29825,1816.0,1815.5,5.50799]
[1743788416550,5.50797,1815.6,1815.1,5.50908]
[1743788416769,6.30104,1815.8,1814.9,0.7576]
[1743788417072,3.7936,1815.8,1815.0,5.5096]
[1743788417226,0.7895,1815.4,1815.0,5.50963]
[1743788417427,6.299,1815.3,1815.0,11.01926]
[1743788417650,6.299,1815.3,1814.8,0.05509335]
[1743788417856,6.299,1815.3,1815.0,5.5095]
[1743788418355,6.299,1815.3,1814.9,11.0197]
[1743788418526,1.259699,1815.3,1814.5,5.51107]
[1743788418726,1.259699,1815.3,1815.0,5.50944]
[1743788418958,7.0785,1815.4,1815.0,5.50944]
[1743788419172,7.0785,1815.4,1815.1,5.50931]
[1743788419400,7.0785,1815.4,1814.9,5.5097]
[1743788419531,12.58695,1815.4,1815.0,5.50952]
[1743788419730,12.58706,1815.4,1814.9,5.5097]
[1743788419931,7.0785,1815.4,1815.0,5.50951]
[1743788420139,0.7895,1815.4,1814.7,0.765]
[1743788420465,0.7895,1815.4,1815.2,5.50892]
[1743788420674,0.7895,1815.4,1815.3,5.50873]
[1743788420872,6.291,1815.5,1815.4,5.50842]
[1743788421067,6.291,1815.5,1815.3,5.50873]
[1743788421231,6.73861239,1815.7,1815.3,5.50873]
[1743788421573,6.3,1815.5,1815.4,5.50842]
[1743788421768,6.304,1816.0,1815.5,5.50812]
[1743788421943,6.304,1816.0,1815.8,5.5071]
[1743788422357,6.304,1816.0,1815.8,11.0141]
[1743788422702,6.304,1816.0,1815.8,5.507]
[1743788423201,6.296,1816.3,1816.2,5.50578]
[1743788423499,6.296,1816.3,1815.8,6.4834887]
[1743788423659,6.296,1816.3,1816.0,5.5065]
[1743788424282,6.296,1816.3,1815.9,5.50673]
[1743788424468,6.296,1816.3,1815.7,0.05506734]
[1743788424674,6.296,1816.3,1816.1,5.5063]
[1743788424874,0.8005,1816.4,1816.2,5.50584]
[1743788425075,24.767,1816.5,1816.2,5.50584]
[1743788425076,24.767,1816.5,1816.4,5.50539]
[1743788425773,6.288,1816.6,1816.5,5.50509]
[1743788426098,6.382,1816.9,1816.8,5.50418]
[1743788427178,0.1,1817.9,1817.0,5.5035]
[1743788427380,6.289,1817.8,1817.6,5.50175]
[1743788427583,6.9279,1817.8,1817.4,5.50222]
[1743788427779,6.9279,1817.8,1817.6,5.50164]
[1743788428091,6.385,1817.9,1817.7,5.50143]
[1743788428308,6.385,1817.9,1817.8,5.50115]
[1743788428464,0.1,1817.9,1817.8,5.50115]
[1743788429487,0.1,1817.9,1817.8,5.55615649]
[1743788429699,0.1,1817.9,1817.8,5.50115]
[1743788429902,0.1,1817.9,1817.8,6.601408]
[1743788430616,0.1,1817.9,1817.8,5.50115]
[1743788431368,0.32509429,1817.9,1817.8,5.50115]
[1743788431771,6.60809429,1817.9,1817.3,5.50263]
[1743788431972,0.32509429,1817.9,1817.8,5.50115]
[1743788432189,0.32509429,1817.9,1817.8,6.65642729]
[1743788432390,0.1,1817.9,1817.8,6.60141]
[1743788432617,0.1,1817.9,1817.8,5.50115]
[1743788432824,0.32509429,1817.9,1817.8,5.50115]
[1743788433025,0.1,1817.9,1817.8,5.50115]
[1743788433204,0.32509429,1817.9,1817.8,5.50115]
[1743788434117,0.32509429,1817.9,1817.8,5.55615057]
[1743788434315,0.1,1817.9,1817.8,6.74254163]
[1743788434485,0.1,1817.9,1817.8,6.74253848]
[1743788434686,0.1,1817.9,1817.8,6.68754106]
[1743788434883,0.1,1817.9,1817.8,5.50115]
[1743788435181,0.1,1817.9,1817.7,5.50136]
[1743788435383,6.56403437,1817.8,1817.4,5.5021]
[1743788435585,6.56403437,1817.8,1817.3,5.50263]
[1743788435908,6.56403437,1817.8,1817.3,11.00508]
[1743788436094,6.56403437,1817.8,1817.4,5.50219]
[1743788436280,6.56403437,1817.8,1817.4,11.0594526]
[1743788436713,6.56403437,1817.8,1817.4,5.5572126]
[1743788436888,6.56403437,1817.8,1817.4,5.50217]
[1743788437090,0.22503437,1817.8,1816.9,6.28529]
[1743788437308,0.22503437,1817.8,1817.3,5.50265]
[1743788437309,6.56003437,1817.8,1817.3,5.50265]
[1743788437496,12.06132437,1817.8,1817.3,5.50265]
[1743788437699,5.50189,1817.6,1817.0,11.00679]
[1743788437998,0.22891996,1817.5,1817.0,11.00679]
[1743788438201,0.22891996,1817.5,1817.1,5.50308]
[1743788438465,6.25785,1817.7,1817.1,11.00618]
[1743788438595,0.22859107,1817.4,1817.2,11.00561]
[1743788438796,0.7562,1817.7,1817.1,0.82612904]
[1743788439139,0.21013976,1817.6,1817.5,5.50206]
[1743788439639,0.1,1817.9,1817.8,5.50115]
[1743788439933,0.1,1817.9,1816.7,12.387]
[1743788440235,0.1,1817.9,1817.8,5.50115]
[1743788440414,0.1,1817.9,1817.8,5.556154]
[1743788440728,0.1,1817.9,1817.8,5.50115]
[1743788441608,0.1,1817.9,1817.7,5.50134]
[1743788441804,0.1,1817.9,1817.8,5.50115]
[1743788442022,0.1,1817.9,1817.8,6.601393]
[1743788442703,0.1,1817.9,1817.8,6.65639355]
[1743788443110,0.1,1817.9,1817.8,6.601393]
[1743788443834,0.1,1817.9,1817.8,5.50115]
[1743788444307,0.1,1817.9,1817.6,11.00334]
[1743788444507,0.1,1817.9,1817.7,5.50134]
[1743788444737,0.1,1817.9,1817.8,5.50115]
[1743788444938,0.1,1817.9,1817.8,5.55615559]
[1743788445931,0.1,1817.9,1817.8,5.50115]
[1743788446133,0.1,1817.9,1817.8,5.55614896]
[1743788446369,0.1,1817.9,1817.8,6.60141]
[1743788447666,0.1,1817.9,1817.8,6.65640674]
[1743788447871,0.1,1817.9,1817.8,7.41171]
[1743788448435,1e-05,1817.9,1817.8,7.41171]
[1743788448962,1e-05,1817.9,1817.8,8.13354604]
[1743788449178,1e-05,1817.9,1817.8,8.18853658]
[1743788449633,1e-05,1817.9,1817.8,8.5947369]
[1743788450134,1e-05,1817.9,1817.8,7.98974636]
[1743788450331,1e-05,1817.9,1817.8,8.04473611]
[1743788451274,1e-05,1817.9,1817.8,7.98974636]
[1743788451774,1e-05,1817.9,1817.8,6.77324604]
[1743788451935,1e-05,1817.9,1817.8,5.50115]
[1743788452331,1e-05,1817.9,1817.6,5.50175]
[1743788452551,6.45146967,1817.9,1817.5,5.50195]
[1743788452747,0.19043489,1817.8,1817.3,5.50264]
[1743788453046,0.19043489,1817.8,1817.5,5.50199]
[1743788453375,6.26101,1817.9,1817.7,5.50132]
[1743788453667,6.26101,1817.9,1817.7,5.50128]
[1743788454034,6.26101,1817.9,1817.8,5.50115]
[1743788454275,6.26101,1817.9,1817.7,5.50128]
[1743788454470,6.26101,1817.9,1817.8,5.50115]
[1743788454647,1e-05,1817.9,1817.7,5.50128]
[1743788454842,1e-05,1817.9,1817.7,5.50144]
[1743788455265,1e-05,1817.9,1817.6,5.50164]
[1743788455934,1e-05,1817.9,1817.6,11.00328]
[1743788456378,1e-05,1817.9,1817.7,0.17191231]
[1743788456679,1e-05,1817.9,1817.7,5.67336231]
[1743788456973,0.7746,1817.8,1817.7,0.17191231]
[1743788457141,0.7746,1817.8,1817.6,5.50163]
[1743788457546,0.7746,1817.8,1817.7,0.17191231]
[1743788458181,0.7746,1817.8,1817.5,0.17191231]
[1743788458339,0.7746,1817.8,1817.6,5.50161]
[1743788458876,1e-05,1817.9,1817.7,0.17191231]
[1743788459077,1e-05,1817.9,1817.7,5.67320231]
[1743788459247,1e-05,1817.9,1817.8,0.05501046]
[1743788459435,1e-05,1817.9,1817.8,5.72807277]
[1743788459636,1e-05,1817.9,1817.8,5.67306231]
[1743788460363,1e-05,1817.9,1817.8,0.17191231]
[1743788460565,1e-05,1817.9,1817.8,5.67306231]
[1743788460962,1e-05,1817.9,1817.8,0.17191231]